fUSD/lending_fUSD_20260614
["ID","MTS","AMOUNT","RATE_DAILY","PERIOD"]
[425052303,1781447465000,-500.0,0.00027945,8]
[425052309,1781447465000,-534.02,0.00027945,8]
[425052302,1781447465000,-500.0,0.00027945,8]
[425052299,1781447465000,-500.0,0.00027945,8]
[425052294,1781447465000,-500.0,0.00027945,8]
[425052298,1781447465000,-500.0,0.00027945,8]
[425052305,1781447465000,-500.0,0.00027945,8]
[425052377,1781447466000,-500.0,0.00027945,8]
[425052378,1781447466000,-500.0,0.00027945,8]
[425052376,1781447466000,-500.0,0.00027945,8]
[425052374,1781447466000,-566.53,0.00027945,8]
[425052379,1781447466000,-500.0,0.00027945,8]
[425052372,1781447466000,-892.45,0.00027945,8]
[425052370,1781447466000,-1046.11,0.00027945,8]
[425052369,1781447466000,-715.69,0.00027945,8]
[425052368,1781447466000,-533.2,0.00027945,8]
[425052373,1781447466000,-500.0,0.00027945,8]
[425052371,1781447466000,-500.0,0.00027945,8]
[425052375,1781447466000,-500.0,0.00027945,8]
[425052402,1781447466000,-500.0,0.00027945,8]
[425052381,1781447466000,-500.0,0.00027945,8]
[425052386,1781447466000,-1199.94,0.00027945,8]
[425052382,1781447466000,-500.0,0.00027945,8]
[425052384,1781447466000,-714.38,0.00027945,8]
[425052389,1781447466000,-500.0,0.00027945,8]
[425052383,1781447466000,-500.0,0.00027945,8]
[425052390,1781447466000,-536.09,0.00027945,8]
[425052388,1781447466000,-500.0,0.00027945,8]
[425052387,1781447466000,-529.52,0.00027945,8]
[425052385,1781447466000,-500.0,0.00027945,8]
[425052392,1781447466000,-1220.66,0.00027945,8]
[425052362,1781447466000,-500.0,0.00027945,8]
[425052380,1781447466000,-500.0,0.00027945,8]
[425052361,1781447466000,-500.0,0.00027945,8]
[425052348,1781447466000,-500.0,0.00027945,8]
[425052363,1781447466000,-639.31,0.00027945,8]
[425052393,1781447466000,-500.0,0.00027945,8]
[425052344,1781447466000,-723.54,0.00027945,8]
[425052341,1781447466000,-500.0,0.00027945,8]
[425052340,1781447466000,-500.0,0.00027945,8]
[425052343,1781447466000,-689.06,0.00027945,8]
[425052339,1781447466000,-1254.7,0.00027945,8]
[425052342,1781447466000,-500.0,0.00027945,8]
[425052346,1781447466000,-500.0,0.00027945,8]
[425052354,1781447466000,-559.91,0.00027945,8]
[425052345,1781447466000,-1746.88,0.00027945,8]
[425052355,1781447466000,-500.0,0.00027945,8]
[425052351,1781447466000,-500.0,0.00027945,8]
[425052347,1781447466000,-500.0,0.00027945,8]
[425052353,1781447466000,-500.0,0.00027945,8]
[425052349,1781447466000,-500.0,0.00027945,8]
[425052350,1781447466000,-784.28,0.00027945,8]
[425052352,1781447466000,-872.27,0.00027945,8]
[425052356,1781447466000,-500.0,0.00027945,8]
[425052357,1781447466000,-500.0,0.00027945,8]
[425052360,1781447466000,-500.0,0.00027945,8]
[425052367,1781447466000,-500.0,0.00027945,8]
[425052358,1781447466000,-500.0,0.00027945,8]
[425052365,1781447466000,-504.6,0.00027945,8]
[425052359,1781447466000,-383.66270671,0.00027945,8]
[425052366,1781447466000,-500.0,0.00027945,8]
[425052364,1781447466000,-623.88,0.00027945,8]
[425052394,1781447466000,-500.0,0.00027945,8]
[425052391,1781447466000,-611.86,0.00027945,8]
[425052397,1781447466000,-500.0,0.00027945,8]
[425052435,1781447466000,-500.0,0.00027945,8]
[425052428,1781447466000,-500.0,0.00027945,8]
[425052430,1781447466000,-1794.38,0.00027945,8]
[425052431,1781447466000,-752.56,0.00027945,8]
[425052429,1781447466000,-500.0,0.00027945,8]
[425052433,1781447466000,-500.0,0.00027945,8]
[425052427,1781447466000,-1086.15,0.00027945,8]
[425052437,1781447466000,-500.0,0.00027945,8]
[425052432,1781447466000,-500.0,0.00027945,8]
[425052436,1781447466000,-500.0,0.00027945,8]
[425052434,1781447466000,-500.0,0.00027945,8]
[425052438,1781447466000,-500.0,0.00027945,8]
[425052426,1781447466000,-500.0,0.00027945,8]
[425052448,1781447466000,-500.0,0.00027945,8]
[425052447,1781447466000,-500.0,0.00027945,8]
[425052443,1781447466000,-1214.87,0.00027945,8]
[425052444,1781447466000,-712.15,0.00027945,8]
[425052442,1781447466000,-500.0,0.00027945,8]
[425052441,1781447466000,-500.0,0.00027945,8]
[425052446,1781447466000,-658.12,0.00027945,8]
[425052445,1781447466000,-172.10201637,0.00027945,8]
[425052451,1781447466000,-500.0,0.00027945,8]
[425052449,1781447466000,-500.0,0.00027945,8]
[425052452,1781447466000,-556.38,0.00027945,8]
[425052450,1781447466000,-710.6,0.00027945,8]
[425052398,1781447466000,-500.0,0.00027945,8]
[425052440,1781447466000,-500.0,0.00027945,8]
[425052421,1781447466000,-1236.08,0.00027945,8]
[425052439,1781447466000,-1362.07,0.00027945,8]
[425052423,1781447466000,-500.0,0.00027945,8]
[425052395,1781447466000,-1992.83,0.00027945,8]
[425052418,1781447466000,-500.0,0.00027945,8]
[425052396,1781447466000,-1285.7,0.00027945,8]
[425052400,1781447466000,-500.0,0.00027945,8]
[425052401,1781447466000,-500.0,0.00027945,8]
[425052399,1781447466000,-694.6,0.00027945,8]
[425052403,1781447466000,-500.0,0.00027945,8]
[425052409,1781447466000,-500.0,0.00027945,8]
[425052405,1781447466000,-577.76,0.00027945,8]
[425052408,1781447466000,-681.48,0.00027945,8]
[425052407,1781447466000,-500.0,0.00027945,8]
[425052406,1781447466000,-638.67,0.00027945,8]
[425052404,1781447466000,-694.97,0.00027945,8]
[425052411,1781447466000,-500.0,0.00027945,8]
[425052417,1781447466000,-606.2,0.00027945,8]
[425052419,1781447466000,-648.66,0.00027945,8]
[425052410,1781447466000,-1019.53,0.00027945,8]
[425052425,1781447466000,-500.0,0.00027945,8]
[425052420,1781447466000,-500.0,0.00027945,8]
[425052424,1781447466000,-500.0,0.00027945,8]
[425052422,1781447466000,-500.0,0.00027945,8]
[425052416,1781447466000,-770.14,0.00027945,8]
[425052413,1781447466000,-500.0,0.00027945,8]
[425052412,1781447466000,-500.0,0.00027945,8]
[425052414,1781447466000,-500.0,0.00027945,8]
[425052415,1781447466000,-500.0,0.00027945,8]
[425052486,1781447467000,-500.0,0.00027945,8]
[425052493,1781447467000,-500.0,0.00027945,8]
[425052491,1781447467000,-500.0,0.00027945,8]
[425052490,1781447467000,-500.0,0.00027945,8]
[425052492,1781447467000,-1016.47,0.00027945,8]
[425052485,1781447467000,-1199.11,0.00027945,8]
[425052497,1781447467000,-856.87,0.00027945,8]
[425052498,1781447467000,-500.0,0.00027945,8]
[425052488,1781447467000,-500.0,0.00027945,8]
[425052487,1781447467000,-579.71,0.00027945,8]
[425052494,1781447467000,-1038.13,0.00027945,8]
[425052489,1781447467000,-500.0,0.00027945,8]
[425052496,1781447467000,-519.48,0.00027945,8]
[425052508,1781447467000,-500.0,0.00027945,8]
[425052499,1781447467000,-565.44,0.00027945,8]
[425052502,1781447467000,-500.0,0.00027945,8]
[425052501,1781447467000,-500.0,0.00027945,8]
[425052500,1781447467000,-597.59,0.00027945,8]
[425052503,1781447467000,-1068.73,0.00027945,8]
[425052504,1781447467000,-500.0,0.00027945,8]
[425052507,1781447467000,-1514.46,0.00027945,8]
[425052506,1781447467000,-500.0,0.00027945,8]
[425052510,1781447467000,-500.0,0.00027945,8]
[425052505,1781447467000,-657.3,0.00027945,8]
[425052511,1781447467000,-944.34,0.00027945,8]
[425052509,1781447467000,-663.09,0.00027945,8]
[425052481,1781447467000,-500.0,0.00027945,8]
[425052495,1781447467000,-500.0,0.00027945,8]
[425052483,1781447467000,-747.07,0.00027945,8]
[425052455,1781447467000,-500.0,0.00027945,8]
[425052484,1781447467000,-500.0,0.00027945,8]
[425052524,1781447467000,-631.21,0.00027945,8]
[425052453,1781447467000,-608.25484525,0.00027945,8]
[425052456,1781447467000,-1530.48,0.00027945,8]
[425052454,1781447467000,-932.78,0.00027945,8]
[425052458,1781447467000,-500.0,0.00027945,8]
[425052460,1781447467000,-500.0,0.00027945,8]
[425052459,1781447467000,-630.94689076,0.00027945,8]
[425052457,1781447467000,-500.0,0.00027945,8]
[425052461,1781447467000,-500.0,0.00027945,8]
[425052462,1781447467000,-500.0,0.00027945,8]
[425052471,1781447467000,-1329.36,0.00027945,8]
[425052472,1781447467000,-578.24,0.00027945,8]
[425052473,1781447467000,-500.0,0.00027945,8]
[425052482,1781447467000,-500.0,0.00027945,8]
[425052463,1781447467000,-500.0,0.00027945,8]
[425052469,1781447467000,-500.0,0.00027945,8]
[425052467,1781447467000,-836.13,0.00027945,8]
[425052468,1781447467000,-500.0,0.00027945,8]
[425052466,1781447467000,-500.0,0.00027945,8]
[425052465,1781447467000,-500.0,0.00027945,8]
[425052470,1781447467000,-500.0,0.00027945,8]
[425052474,1781447467000,-500.0,0.00027945,8]
[425052476,1781447467000,-987.41,0.00027945,8]
[425052477,1781447467000,-500.0,0.00027945,8]
[425052475,1781447467000,-500.0,0.00027945,8]
[425052480,1781447467000,-500.0,0.00027945,8]
[425052478,1781447467000,-500.0,0.00027945,8]
[425052479,1781447467000,-500.0,0.00027945,8]
[425052464,1781447467000,-500.0,0.00027945,8]
[425052513,1781447467000,-500.0,0.00027945,8]
[425052572,1781447467000,-500.0,0.00027945,8]
[425052512,1781447467000,-675.87,0.00027945,8]
[425052547,1781447467000,-500.0,0.00027945,8]
[425052551,1781447467000,-500.0,0.00027945,8]
[425052549,1781447467000,-500.0,0.00027945,8]
[425052552,1781447467000,-880.78,0.00027945,8]
[425052553,1781447467000,-500.0,0.00027945,8]
[425052550,1781447467000,-500.0,0.00027945,8]
[425052554,1781447467000,-3014.18,0.00027945,8]
[425052556,1781447467000,-500.0,0.00027945,8]
[425052555,1781447467000,-616.02,0.00027945,8]
[425052557,1781447467000,-500.0,0.00027945,8]
[425052561,1781447467000,-500.0,0.00027945,8]
[425052558,1781447467000,-500.0,0.00027945,8]
[425052559,1781447467000,-500.0,0.00027945,8]
[425052560,1781447467000,-500.0,0.00027945,8]
[425052563,1781447467000,-500.0,0.00027945,8]
[425052573,1781447467000,-3250.13,0.00027945,8]
[425052565,1781447467000,-227.19,0.00027945,8]
[425052564,1781447467000,-869.12,0.00027945,8]
[425052562,1781447467000,-500.0,0.00027945,8]
[425052567,1781447467000,-500.0,0.00027945,8]
[425052566,1781447467000,-992.68,0.00027945,8]
[425052568,1781447467000,-500.0,0.00027945,8]
[425052569,1781447467000,-1461.98,0.00027945,8]
[425052570,1781447467000,-500.0,0.00027945,8]
[425052523,1781447467000,-845.18,0.00027945,8]
[425052575,1781447467000,-1539.52,0.00027945,8]
[425052574,1781447467000,-500.0,0.00027945,8]
[425052543,1781447467000,-648.15,0.00027945,8]
[425052546,1781447467000,-2000.0,0.00027945,2]
[425052571,1781447467000,-500.0,0.00027945,8]
[425052545,1781447467000,-500.0,0.00027945,8]
[425052544,1781447467000,-500.0,0.00027945,8]
[425052518,1781447467000,-500.0,0.00027945,8]
[425052516,1781447467000,-881.04,0.00027945,8]
[425052514,1781447467000,-500.0,0.00027945,8]
[425052521,1781447467000,-500.0,0.00027945,8]
[425052515,1781447467000,-500.0,0.00027945,8]
[425052517,1781447467000,-1042.52,0.00027945,8]
[425052522,1781447467000,-500.0,0.00027945,8]
[425052519,1781447467000,-642.31,0.00027945,8]
[425052525,1781447467000,-500.0,0.00027945,8]
[425052527,1781447467000,-500.0,0.00027945,8]
[425052533,1781447467000,-500.0,0.00027945,8]
[425052528,1781447467000,-500.0,0.00027945,8]
[425052536,1781447467000,-1150.58,0.00027945,8]
[425052520,1781447467000,-702.19,0.00027945,8]
[425052529,1781447467000,-729.66,0.00027945,8]
[425052542,1781447467000,-564.84,0.00027945,8]
[425052532,1781447467000,-500.0,0.00027945,8]
[425052540,1781447467000,-500.0,0.00027945,8]
[425052539,1781447467000,-532.23,0.00027945,8]
[425052537,1781447467000,-500.0,0.00027945,8]
[425052548,1781447467000,-835.21,0.00027945,8]
[425052541,1781447467000,-657.48,0.00027945,8]
[425052531,1781447467000,-500.0,0.00027945,8]
[425052535,1781447467000,-500.0,0.00027945,8]
[425052526,1781447467000,-500.0,0.00027945,8]
[425052534,1781447467000,-500.0,0.00027945,8]
[425052530,1781447467000,-815.38,0.00027945,8]
[425052538,1781447467000,-500.0,0.00027945,8]
[425052613,1781447468000,-1701.25,0.00027945,8]
[425052614,1781447468000,-592.38,0.00027945,8]
[425052611,1781447468000,-500.0,0.00027945,8]
[425052621,1781447468000,-500.0,0.00027945,8]
[425052628,1781447468000,-720.7,0.00027945,8]
[425052612,1781447468000,-674.5,0.00027945,8]
[425052609,1781447468000,-239.89275358,0.00027945,8]
[425052610,1781447468000,-500.0,0.00027945,8]
[425052600,1781447468000,-605.61,0.00027945,8]
[425052604,1781447468000,-500.0,0.00027945,8]
[425052622,1781447468000,-500.0,0.00027945,8]
[425052608,1781447468000,-500.0,0.00027945,8]
[425052618,1781447468000,-500.0,0.00027945,8]
[425052617,1781447468000,-1169.04,0.00027945,8]
[425052619,1781447468000,-558.94,0.00027945,8]
[425052620,1781447468000,-500.0,0.00027945,8]
[425052616,1781447468000,-500.0,0.00027945,8]
[425052623,1781447468000,-500.0,0.00027945,8]
[425052625,1781447468000,-500.0,0.00027945,8]
[425052624,1781447468000,-500.0,0.00027945,8]
[425052634,1781447468000,-500.0,0.00027945,8]
[425052626,1781447468000,-500.0,0.00027945,8]
[425052629,1781447468000,-702.01,0.00027945,8]
[425052632,1781447468000,-682.04,0.00027945,8]
[425052603,1781447468000,-698.01,0.00027945,8]
[425052615,1781447468000,-500.0,0.00027945,8]
[425052607,1781447468000,-500.0,0.00027945,8]
[425052588,1781447468000,-1661.43,0.00027945,8]
[425052601,1781447468000,-497.43968388,0.00027945,8]
[425052630,1781447468000,-500.0,0.00027945,8]
[425052582,1781447468000,-500.0,0.00027945,8]
[425052576,1781447468000,-500.0,0.00027945,8]
[425052579,1781447468000,-500.0,0.00027945,8]
[425052580,1781447468000,-870.51,0.00027945,8]
[425052578,1781447468000,-500.0,0.00027945,8]
[425052583,1781447468000,-692.78,0.00027945,8]
[425052585,1781447468000,-500.0,0.00027945,8]
[425052577,1781447468000,-641.52,0.00027945,8]
[425052584,1781447468000,-540.29,0.00027945,8]
[425052581,1781447468000,-500.0,0.00027945,8]
[425052587,1781447468000,-500.0,0.00027945,8]
[425052605,1781447468000,-2667.75,0.00027945,8]
[425052597,1781447468000,-500.0,0.00027945,8]
[425052586,1781447468000,-743.01,0.00027945,8]
[425052590,1781447468000,-500.0,0.00027945,8]
[425052592,1781447468000,-920.43,0.00027945,8]
[425052591,1781447468000,-500.0,0.00027945,8]
[425052593,1781447468000,-500.0,0.00027945,8]
[425052589,1781447468000,-553.44,0.00027945,8]
[425052594,1781447468000,-1059.33,0.00027945,8]
[425052596,1781447468000,-509.71,0.00027945,8]
[425052595,1781447468000,-500.0,0.00027945,8]
[425052599,1781447468000,-662.85,0.00027945,8]
[425052602,1781447468000,-500.0,0.00027945,8]
[425052606,1781447468000,-500.0,0.00027945,8]
[425052598,1781447468000,-500.0,0.00027945,8]
[425052631,1781447468000,-2238.28,0.00027945,8]
[425052654,1781447468000,-500.0,0.00027945,8]
[425052633,1781447468000,-502.0,0.00027945,8]
[425052656,1781447468000,-1000.0,0.00027945,8]
[425052667,1781447468000,-500.0,0.00027945,8]
[425052669,1781447468000,-500.0,0.00027945,8]
[425052678,1781447468000,-500.0,0.00027945,8]
[425052668,1781447468000,-500.0,0.00027945,8]
[425052677,1781447468000,-940.15,0.00027945,8]
[425052679,1781447468000,-500.0,0.00027945,8]
[425052672,1781447468000,-500.0,0.00027945,8]
[425052670,1781447468000,-877.23,0.00027945,8]
[425052671,1781447468000,-546.64,0.00027945,8]
[425052673,1781447468000,-1056.35,0.00027945,8]
[425052675,1781447468000,-500.0,0.00027945,8]
[425052662,1781447468000,-1427.79,0.00027945,8]
[425052676,1781447468000,-500.0,0.00027945,8]
[425052683,1781447468000,-1143.85,0.00027945,8]
[425052682,1781447468000,-679.83,0.00027945,8]
[425052686,1781447468000,-500.0,0.00027945,8]
[425052684,1781447468000,-500.0,0.00027945,8]
[425052685,1781447468000,-825.79,0.00027945,8]
[425052687,1781447468000,-1116.26,0.00027945,8]
[425052690,1781447468000,-704.65,0.00027945,8]
[425052681,1781447468000,-500.0,0.00027945,8]
[425052689,1781447468000,-500.0,0.00027945,8]
[425052691,1781447468000,-1082.98,0.00027945,8]
[425052688,1781447468000,-626.04,0.00027945,8]
[425052627,1781447468000,-605.88,0.00027945,8]
[425052680,1781447468000,-10759.52,0.00027945,8]
[425052664,1781447468000,-500.0,0.00027945,8]
[425052674,1781447468000,-500.0,0.00027945,8]
[425052665,1781447468000,-352.48727165,0.00027945,8]
[425052636,1781447468000,-500.0,0.00027945,8]
[425052659,1781447468000,-500.0,0.00027945,8]
[425052639,1781447468000,-500.0,0.00027945,8]
[425052641,1781447468000,-2017.64,0.00027945,8]
[425052637,1781447468000,-500.0,0.00027945,8]
[425052640,1781447468000,-2663.08,0.00027945,8]
[425052635,1781447468000,-500.0,0.00027945,8]
[425052638,1781447468000,-966.37,0.00027945,8]
[425052642,1781447468000,-580.54,0.00027945,8]
[425052647,1781447468000,-1157.66,0.00027945,8]
[425052643,1781447468000,-623.6,0.00027945,8]
[425052645,1781447468000,-550.82,0.00027945,8]
[425052646,1781447468000,-500.0,0.00027945,8]
[425052644,1781447468000,-500.0,0.00027945,8]
[425052650,1781447468000,-500.0,0.00027945,8]
[425052666,1781447468000,-500.0,0.00027945,8]
[425052651,1781447468000,-543.63,0.00027945,8]
[425052660,1781447468000,-500.0,0.00027945,8]
[425052657,1781447468000,-500.0,0.00027945,8]
[425052661,1781447468000,-500.0,0.00027945,8]
[425052658,1781447468000,-703.84,0.00027945,8]
[425052663,1781447468000,-5751.63,0.00027945,8]
[425052653,1781447468000,-500.0,0.00027945,8]
[425052648,1781447468000,-500.0,0.00027945,8]
[425052652,1781447468000,-1675.9,0.00027945,8]
[425052649,1781447468000,-842.22,0.00027945,8]
[425052655,1781447468000,-500.0,0.00027945,8]
[425052734,1781447469000,-508.2,0.00027945,8]
[425052720,1781447469000,-1682.54,0.00027945,8]
[425052732,1781447469000,-1000.0,0.00027945,8]
[425052731,1781447469000,-4001.43,0.00027945,8]
[425052729,1781447469000,-1109.22,0.00027945,8]
[425052727,1781447469000,-540.32,0.00027945,8]
[425052724,1781447469000,-500.0,0.00027945,8]
[425052725,1781447469000,-636.66,0.00027945,8]
[425052723,1781447469000,-1282.28,0.00027945,8]
[425052736,1781447469000,-1407.31,0.00027945,8]
[425052730,1781447469000,-1749.66,0.00027945,8]
[425052733,1781447469000,-500.0,0.00027945,8]
[425052742,1781447469000,-500.0,0.00027945,8]
[425052735,1781447469000,-1023.6,0.00027945,8]
[425052738,1781447469000,-500.0,0.00027945,8]
[425052737,1781447469000,-500.0,0.00027945,8]
[425052740,1781447469000,-500.0,0.00027945,8]
[425052750,1781447469000,-500.0,0.00027945,8]
[425052739,1781447469000,-1278.35,0.00027945,8]
[425052741,1781447469000,-563.46,0.00027945,8]
[425052743,1781447469000,-500.0,0.00027945,8]
[425052744,1781447469000,-11664.09,0.00027945,8]
[425052747,1781447469000,-505.16,0.00027945,8]
[425052746,1781447469000,-500.0,0.00027945,8]
[425052717,1781447469000,-500.0,0.00027945,8]
[425052728,1781447469000,-500.0,0.00027945,8]
[425052722,1781447469000,-610.83,0.00027945,8]
[425052693,1781447469000,-500.0,0.00027945,8]
[425052715,1781447469000,-658.84,0.00027945,8]
[425052749,1781447469000,-500.0,0.00027945,8]
[425052692,1781447469000,-500.0,0.00027945,8]
[425052695,1781447469000,-702.05,0.00027945,8]
[425052694,1781447469000,-4182.59,0.00027945,8]
[425052696,1781447469000,-500.0,0.00027945,8]
[425052702,1781447469000,-500.0,0.00027945,8]
[425052700,1781447469000,-500.0,0.00027945,8]
[425052698,1781447469000,-3026.85,0.00027945,8]
[425052699,1781447469000,-500.0,0.00027945,8]
[425052701,1781447469000,-500.0,0.00027945,8]
[425052705,1781447469000,-500.0,0.00027945,8]
[425052703,1781447469000,-500.0,0.00027945,8]
[425052719,1781447469000,-500.0,0.00027945,8]
[425052707,1781447469000,-639.3653032,0.00027945,8]
[425052704,1781447469000,-2931.64,0.00027945,8]
[425052711,1781447469000,-3706.06,0.00027945,8]
[425052712,1781447469000,-500.0,0.00027945,8]
[425052706,1781447469000,-500.0,0.00027945,8]
[425052710,1781447469000,-528.8,0.00027945,8]
[425052708,1781447469000,-500.0,0.00027945,8]
[425052713,1781447469000,-500.0,0.00027945,8]
[425052714,1781447469000,-518.74,0.00027945,8]
[425052716,1781447469000,-500.0,0.00027945,8]
[425052726,1781447469000,-528.7,0.00027945,8]
[425052721,1781447469000,-500.0,0.00027945,8]
[425052718,1781447469000,-500.0,0.00027945,8]
[425052709,1781447469000,-742.57,0.00027945,8]
[425052745,1781447469000,-25282.9,0.00027945,8]
[425052697,1781447469000,-500.0,0.00027945,8]
[425052751,1781447469000,-500.0,0.00027945,8]
[425052783,1781447469000,-500.0,0.00027945,8]
[425052781,1781447469000,-1090.91,0.00027945,8]
[425052785,1781447469000,-500.0,0.00027945,8]
[425052786,1781447469000,-3216.2,0.00027945,8]
[425052787,1781447469000,-500.0,0.00027945,8]
[425052788,1781447469000,-2562.95,0.00027945,8]
[425052794,1781447469000,-500.0,0.00027945,8]
[425052792,1781447469000,-1108.18,0.00027945,8]
[425052789,1781447469000,-500.0,0.00027945,8]
[425052790,1781447469000,-1440.23,0.00027945,8]
[425052791,1781447469000,-605.58,0.00027945,8]
[425052798,1781447469000,-500.0,0.00027945,8]
[425052776,1781447469000,-577.98,0.00027945,8]
[425052795,1781447469000,-500.0,0.00027945,8]
[425052796,1781447469000,-500.0,0.00027945,8]
[425052797,1781447469000,-503.6513204,0.00027945,8]
[425052799,1781447469000,-2020.73,0.00027945,8]
[425052802,1781447469000,-1129.02,0.00027945,2]
[425052801,1781447469000,-1357.49,0.00027945,8]
[425052808,1781447469000,-529.83,0.00027945,8]
[425052807,1781447469000,-500.0,0.00027945,8]
[425052748,1781447469000,-677.78,0.00027945,8]
[425052805,1781447469000,-500.0,0.00027945,8]
[425052803,1781447469000,-500.0,0.00027945,8]
[425052800,1781447469000,-500.0,0.00027945,8]
[425052806,1781447469000,-878.66,0.00027945,8]
[425052793,1781447469000,-500.0,0.00027945,8]
[425052779,1781447469000,-5973.16,0.00027945,8]
[425052804,1781447469000,-500.0,0.00027945,8]
[425052778,1781447469000,-1413.1,0.00027945,8]
[425052782,1781447469000,-500.0,0.00027945,8]
[425052753,1781447469000,-500.0,0.00027945,8]
[425052754,1781447469000,-589.03,0.00027945,8]
[425052761,1781447469000,-500.0,0.00027945,8]
[425052752,1781447469000,-2026.58,0.00027945,8]
[425052757,1781447469000,-557.28,0.00027945,8]
[425052762,1781447469000,-1828.15,0.00027945,8]
[425052759,1781447469000,-500.0,0.00027945,8]
[425052756,1781447469000,-500.0,0.00027945,8]
[425052755,1781447469000,-1296.71,0.00027945,8]
[425052760,1781447469000,-1801.16,0.00027945,8]
[425052774,1781447469000,-500.0,0.00027945,8]
[425052764,1781447469000,-1343.56,0.00027945,8]
[425052758,1781447469000,-2890.54,0.00027945,8]
[425052765,1781447469000,-1463.18,0.00027945,8]
[425052763,1781447469000,-500.0,0.00027945,8]
[425052784,1781447469000,-3655.13,0.00027945,8]
[425052775,1781447469000,-500.0,0.00027945,8]
[425052770,1781447469000,-500.0,0.00027945,8]
[425052769,1781447469000,-500.0,0.00027945,8]
[425052780,1781447469000,-763.45,0.00027945,8]
[425052773,1781447469000,-500.0,0.00027945,8]
[425052767,1781447469000,-595.31,0.00027945,8]
[425052772,1781447469000,-500.0,0.00027945,8]
[425052766,1781447469000,-1214.13,0.00027945,8]
[425052777,1781447469000,-500.0,0.00027945,8]
[425052768,1781447469000,-500.0,0.00027945,8]
[425052771,1781447469000,-1866.64,0.00027945,8]
[425052836,1781447470000,-5289.14,0.00027945,8]
[425052847,1781447470000,-500.0,0.00027945,8]
[425052845,1781447470000,-2104.15,0.00027945,8]
[425052835,1781447470000,-640.65,0.00027945,8]
[425052837,1781447470000,-1648.13,0.00027945,8]
[425052844,1781447470000,-1609.77,0.00027945,8]
[425052838,1781447470000,-955.12,0.00027945,8]
[425052839,1781447470000,-861.57,0.00027945,8]
[425052843,1781447470000,-800.7,0.00027945,8]
[425052840,1781447470000,-577.21,0.00027945,8]
[425052851,1781447470000,-500.0,0.00027945,8]
[425052841,1781447470000,-500.0,0.00027945,8]
[425052848,1781447470000,-921.05,0.00027945,8]
[425052850,1781447470000,-500.0,0.00027945,8]
[425052852,1781447470000,-1133.48,0.00027945,8]
[425052849,1781447470000,-500.0,0.00027945,8]
[425052855,1781447470000,-350.87951988,0.00027945,8]
[425052857,1781447470000,-500.0,0.00027945,8]
[425052854,1781447470000,-922.21,0.00027945,8]
[425052858,1781447470000,-500.0,0.00027945,8]
[425052846,1781447470000,-500.0,0.00027945,8]
[425052842,1781447470000,-500.0,0.00027945,8]
[425052832,1781447470000,-1326.3,0.00027945,8]